Workbook

Sheet Case study
B1: https://esajournals.onlinelibrary.wiley.com/doi/abs/10.1890/12-1600.1

Sheet Ecosystem services
A1: Landcover | B1: Code | C1: Nesting | D1: Floral | E1: Pollination | F1: Crop price | Q1: Income
A2: F | B2: 1 | C2: 1 | D2: 1 | E2: 1 | F2: 0 | G2: =COUNTIF($A$7:$J$16,B2)/100 -> 0.09 | L2: From | N2: 2 | Q2: =SUMIF($A$7:$J$16,B2,$L$19:$U$28) -> 0 | W2: 1 | X2: <- Foraging window
A3: O | B3: 2 | C3: 0.2 | D3: 0.2 | E3: 1 | F3: 0 | G3: =COUNTIF($A$7:$J$16,B3)/100 -> 0.87 | L3: To | N3: 1 | Q3: =SUMIF($A$7:$J$16,B3,$L$19:$U$28) -> 0
A4: C | B4: 3 | C4: 0 | D4: 0.5 | E4: 1 | F4: 1 | G4: 0.04 | Q4: =SUMIF($A$7:$J$16,B4,$L$19:$U$28) -> 23.84
A6: Landscape pattern | L6: Nesting resources | W6: Floral resources | AH6: Foraging resources | AS6: Relative local pollinator abundance
A7: 2 | B7: 2 | C7: 2 | D7: 2 | E7: 2 | F7: 2 | G7: 2 | H7: 2 | I7: 2 | J7: 2 | L7: =VLOOKUP(A7,$B$2:$C$4,2,FALSE) -> 0.2 | M7: =VLOOKUP(B7,$B$2:$C$4,2,FALSE) -> 0.2 | N7: 0.2 | O7: 0.2 | P7: 0.2 | Q7: 0.2 | R7: 0.2 | S7: 0.2 | T7: 0.2 | U7: 0.2 | W7: =VLOOKUP(A7,$B$2:$D$4,3,FALSE) -> 0.2 | X7: =VLOOKUP(B7,$B$2:$D$4,3,FALSE) -> 0.2 | Y7: 0.2 | Z7: 0.2 | AA7: 0.2 | AB7: 0.2 | AC7: 0.2 | AD7: 0.2 | AE7: 0.2 | AF7: 0.2 | AH7: =SUM(OFFSET(W7,-$W$2,-$W$2):OFFSET(W7,$W$2,$W$2)) -> 1.6 | AI7: =SUM(OFFSET(X7,-$W$2,-$W$2):OFFSET(X7,$W$2,$W$2)) -> 2 | AJ7: =SUM(OFFSET(Y7,-$W$2,-$W$2):OFFSET(Y7,$W$2,$W$2)) -> 2 | AK7: =SUM(OFFSET(Z7,-$W$2,-$W$2):OFFSET(Z7,$W$2,$W$2)) -> 1.2 | AL7: =SUM(OFFSET(AA7,-$W$2,-$W$2):OFFSET(AA7,$W$2,$W$2)) -> 1.2 | AM7: =SUM(OFFSET(AB7,-$W$2,-$W$2):OFFSET(AB7,$W$2,$W$2)) -> 1.2 | AN7: =SUM(OFFSET(AC7,-$W$2,-$W$2):OFFSET(AC7,$W$2,$W$2)) -> 1.5 | AO7: =SUM(OFFSET(AD7,-$W$2,-$W$2):OFFSET(AD7,$W$2,$W$2)) -> 1.5 | AP7: =SUM(OFFSET(AE7,-$W$2,-$W$2):OFFSET(AE7,$W$2,$W$2)) -> 1.5 | AQ7: =SUM(OFFSET(AF7,-$W$2,-$W$2):OFFSET(AF7,$W$2,$W$2)) -> 0.8 | AS7: =L7*AH7 -> 0.32 | AT7: 0.4 | AU7: 0.4 | AV7: 0.24 | AW7: 0.24 | AX7: 0.24 | AY7: 0.3 | AZ7: 0.3 | BA7: 0.3 | BB7: 0.16
A8: 2 | B8: 1 | C8: 2 | D8: 2 | E8: 2 | F8: 2 | G8: 2 | H8: 3 | I8: 2 | J8: 2 | L8: =VLOOKUP(A8,$B$2:$C$4,2,FALSE) -> 0.2 | M8: 1 | N8: 0.2 | O8: 0.2 | P8: 0.2 | Q8: 0.2 | R8: 0.2 | S8: 0 | T8: 0.2 | U8: 0.2 | W8: =VLOOKUP(A8,$B$2:$D$4,3,FALSE) -> 0.2 | X8: 1 | Y8: 0.2 | Z8: 0.2 | AA8: 0.2 | AB8: 0.2 | AC8: 0.2 | AD8: 0.5 | AE8: 0.2 | AF8: 0.2 | AH8: =SUM(OFFSET(W8,-$W$2,-$W$2):OFFSET(W8,$W$2,$W$2)) -> 2 | AI8: =SUM(OFFSET(X8,-$W$2,-$W$2):OFFSET(X8,$W$2,$W$2)) -> 2.6 | AJ8: =SUM(OFFSET(Y8,-$W$2,-$W$2):OFFSET(Y8,$W$2,$W$2)) -> 2.6 | AK8: =SUM(OFFSET(Z8,-$W$2,-$W$2):OFFSET(Z8,$W$2,$W$2)) -> 2.6 | AL8: =SUM(OFFSET(AA8,-$W$2,-$W$2):OFFSET(AA8,$W$2,$W$2)) -> 2.6 | AM8: =SUM(OFFSET(AB8,-$W$2,-$W$2):OFFSET(AB8,$W$2,$W$2)) -> 2.6 | AN8: =SUM(OFFSET(AC8,-$W$2,-$W$2):OFFSET(AC8,$W$2,$W$2)) -> 2.1 | AO8: =SUM(OFFSET(AD8,-$W$2,-$W$2):OFFSET(AD8,$W$2,$W$2)) -> 2.1 | AP8: =SUM(OFFSET(AE8,-$W$2,-$W$2):OFFSET(AE8,$W$2,$W$2)) -> 2.1 | AQ8: =SUM(OFFSET(AF8,-$W$2,-$W$2):OFFSET(AF8,$W$2,$W$2)) -> 1.2 | AS8: 0.4 | AT8: 2.6 | AU8: 0.52 | AV8: 0.52 | AW8: 0.52 | AX8: 0.52 | AY8: 0.42 | AZ8: 0 | BA8: 0.42 | BB8: 0.24
A9: 2 | B9: 2 | C9: 2 | D9: 2 | E9: 1 | F9: 2 | G9: 2 | H9: 2 | I9: 2 | J9: 2 | L9: 0.2 | M9: 0.2 | N9: 0.2 | O9: 0.2 | P9: 1 | Q9: 0.2 | R9: 0.2 | S9: 0.2 | T9: 0.2 | U9: 0.2 | W9: 0.2 | X9: 0.2 | Y9: 0.2 | Z9: 0.2 | AA9: 1 | AB9: 0.2 | AC9: 0.2 | AD9: 0.2 | AE9: 0.2 | AF9: 0.2 | AH9: =SUM(OFFSET(W9,-$W$2,-$W$2):OFFSET(W9,$W$2,$W$2)) -> 2 | AI9: =SUM(OFFSET(X9,-$W$2,-$W$2):OFFSET(X9,$W$2,$W$2)) -> 2.6 | AJ9: =SUM(OFFSET(Y9,-$W$2,-$W$2):OFFSET(Y9,$W$2,$W$2)) -> 2.6 | AK9: =SUM(OFFSET(Z9,-$W$2,-$W$2):OFFSET(Z9,$W$2,$W$2)) -> 2.9 | AL9: =SUM(OFFSET(AA9,-$W$2,-$W$2):OFFSET(AA9,$W$2,$W$2)) -> 2.9 | AM9: =SUM(OFFSET(AB9,-$W$2,-$W$2):OFFSET(AB9,$W$2,$W$2)) -> 2.9 | AN9: =SUM(OFFSET(AC9,-$W$2,-$W$2):OFFSET(AC9,$W$2,$W$2)) -> 2.1 | AO9: =SUM(OFFSET(AD9,-$W$2,-$W$2):OFFSET(AD9,$W$2,$W$2)) -> 2.1 | AP9: =SUM(OFFSET(AE9,-$W$2,-$W$2):OFFSET(AE9,$W$2,$W$2)) -> 2.1 | AQ9: =SUM(OFFSET(AF9,-$W$2,-$W$2):OFFSET(AF9,$W$2,$W$2)) -> 1.2 | AS9: 0.4 | AT9: 0.52 | AU9: 0.52 | AV9: 0.58 | AW9: 2.9 | AX9: 0.58 | AY9: 0.42 | AZ9: 0.42 | BA9: 0.42 | BB9: 0.24
A10: 2 | B10: 2 | C10: 2 | D10: 2 | E10: 3 | F10: 2 | G10: 2 | H10: 2 | I10: 2 | J10: 2 | L10: 0.2 | M10: 0.2 | N10: 0.2 | O10: 0.2 | P10: 0 | Q10: 0.2 | R10: 0.2 | S10: 0.2 | T10: 0.2 | U10: 0.2 | W10: 0.2 | X10: 0.2 | Y10: 0.2 | Z10: 0.2 | AA10: 0.5 | AB10: 0.2 | AC10: 0.2 | AD10: 0.2 | AE10: 0.2 | AF10: 0.2 | AH10: =SUM(OFFSET(W10,-$W$2,-$W$2):OFFSET(W10,$W$2,$W$2)) -> 1.2 | AI10: =SUM(OFFSET(X10,-$W$2,-$W$2):OFFSET(X10,$W$2,$W$2)) -> 1.8 | AJ10: =SUM(OFFSET(Y10,-$W$2,-$W$2):OFFSET(Y10,$W$2,$W$2)) -> 1.8 | AK10: =SUM(OFFSET(Z10,-$W$2,-$W$2):OFFSET(Z10,$W$2,$W$2)) -> 2.9 | AL10: =SUM(OFFSET(AA10,-$W$2,-$W$2):OFFSET(AA10,$W$2,$W$2)) -> 2.9 | AM10: =SUM(OFFSET(AB10,-$W$2,-$W$2):OFFSET(AB10,$W$2,$W$2)) -> 2.9 | AN10: =SUM(OFFSET(AC10,-$W$2,-$W$2):OFFSET(AC10,$W$2,$W$2)) -> 2.6 | AO10: =SUM(OFFSET(AD10,-$W$2,-$W$2):OFFSET(AD10,$W$2,$W$2)) -> 2.6 | AP10: =SUM(OFFSET(AE10,-$W$2,-$W$2):OFFSET(AE10,$W$2,$W$2)) -> 2.6 | AQ10: =SUM(OFFSET(AF10,-$W$2,-$W$2):OFFSET(AF10,$W$2,$W$2)) -> 1.2 | AS10: 0.24 | AT10: 0.36 | AU10: 0.36 | AV10: 0.58 | AW10: 0 | AX10: 0.58 | AY10: 0.52 | AZ10: 0.52 | BA10: 0.52 | BB10: 0.24
A11: 2 | B11: 2 | C11: 2 | D11: 2 | E11: 2 | F11: 2 | G11: 2 | H11: 1 | I11: 2 | J11: 2 | L11: 0.2 | M11: 0.2 | N11: 0.2 | O11: 0.2 | P11: 0.2 | Q11: 0.2 | R11: 0.2 | S11: 1 | T11: 0.2 | U11: 0.2 | W11: 0.2 | X11: 0.2 | Y11: 0.2 | Z11: 0.2 | AA11: 0.2 | AB11: 0.2 | AC11: 0.2 | AD11: 1 | AE11: 0.2 | AF11: 0.2 | AH11: =SUM(OFFSET(W11,-$W$2,-$W$2):OFFSET(W11,$W$2,$W$2)) -> 1.2 | AI11: =SUM(OFFSET(X11,-$W$2,-$W$2):OFFSET(X11,$W$2,$W$2)) -> 2.1 | AJ11: =SUM(OFFSET(Y11,-$W$2,-$W$2):OFFSET(Y11,$W$2,$W$2)) -> 2.9 | AK11: =SUM(OFFSET(Z11,-$W$2,-$W$2):OFFSET(Z11,$W$2,$W$2)) -> 3.2 | AL11: =SUM(OFFSET(AA11,-$W$2,-$W$2):OFFSET(AA11,$W$2,$W$2)) -> 2.9 | AM11: =SUM(OFFSET(AB11,-$W$2,-$W$2):OFFSET(AB11,$W$2,$W$2)) -> 2.1 | AN11: =SUM(OFFSET(AC11,-$W$2,-$W$2):OFFSET(AC11,$W$2,$W$2)) -> 2.6 | AO11: =SUM(OFFSET(AD11,-$W$2,-$W$2):OFFSET(AD11,$W$2,$W$2)) -> 2.6 | AP11: =SUM(OFFSET(AE11,-$W$2,-$W$2):OFFSET(AE11,$W$2,$W$2)) -> 2.6 | AQ11: =SUM(OFFSET(AF11,-$W$2,-$W$2):OFFSET(AF11,$W$2,$W$2)) -> 1.2 | AS11: 0.24 | AT11: 0.42 | AU11: 0.58 | AV11: 0.64 | AW11: 0.58 | AX11: 0.42 | AY11: 0.52 | AZ11: 2.6 | BA11: 0.52 | BB11: 0.24
A12: 2 | B12: 2 | C12: 3 | D12: 1 | E12: 2 | F12: 2 | G12: 2 | H12: 2 | I12: 2 | J12: 2 | L12: 0.2 | M12: 0.2 | N12: 0 | O12: 1 | P12: 0.2 | Q12: 0.2 | R12: 0.2 | S12: 0.2 | T12: 0.2 | U12: 0.2 | W12: 0.2 | X12: 0.2 | Y12: 0.5 | Z12: 1 | AA12: 0.2 | AB12: 0.2 | AC12: 0.2 | AD12: 0.2 | AE12: 0.2 | AF12: 0.2 | AH12: =SUM(OFFSET(W12,-$W$2,-$W$2):OFFSET(W12,$W$2,$W$2)) -> 1.2 | AI12: =SUM(OFFSET(X12,-$W$2,-$W$2):OFFSET(X12,$W$2,$W$2)) -> 2.1 | AJ12: =SUM(OFFSET(Y12,-$W$2,-$W$2):OFFSET(Y12,$W$2,$W$2)) -> 2.9 | AK12: =SUM(OFFSET(Z12,-$W$2,-$W$2):OFFSET(Z12,$W$2,$W$2)) -> 2.9 | AL12: =SUM(OFFSET(AA12,-$W$2,-$W$2):OFFSET(AA12,$W$2,$W$2)) -> 2.9 | AM12: =SUM(OFFSET(AB12,-$W$2,-$W$2):OFFSET(AB12,$W$2,$W$2)) -> 2.9 | AN12: =SUM(OFFSET(AC12,-$W$2,-$W$2):OFFSET(AC12,$W$2,$W$2)) -> 3.7 | AO12: =SUM(OFFSET(AD12,-$W$2,-$W$2):OFFSET(AD12,$W$2,$W$2)) -> 3.4 | AP12: =SUM(OFFSET(AE12,-$W$2,-$W$2):OFFSET(AE12,$W$2,$W$2)) -> 2.6 | AQ12: =SUM(OFFSET(AF12,-$W$2,-$W$2):OFFSET(AF12,$W$2,$W$2)) -> 1.2 | AS12: 0.24 | AT12: 0.42 | AU12: 0 | AV12: 2.9 | AW12: 0.58 | AX12: 0.58 | AY12: 0.74 | AZ12: 0.68 | BA12: 0.52 | BB12: 0.24
A13: 2 | B13: 2 | C13: 2 | D13: 2 | E13: 2 | F13: 3 | G13: 1 | H13: 2 | I13: 2 | J13: 2 | L13: 0.2 | M13: 0.2 | N13: 0.2 | O13: 0.2 | P13: 0.2 | Q13: 0 | R13: 1 | S13: 0.2 | T13: 0.2 | U13: 0.2 | W13: 0.2 | X13: 0.2 | Y13: 0.2 | Z13: 0.2 | AA13: 0.2 | AB13: 0.5 | AC13: 1 | AD13: 0.2 | AE13: 0.2 | AF13: 0.2 | AH13: =SUM(OFFSET(W13,-$W$2,-$W$2):OFFSET(W13,$W$2,$W$2)) -> 1.2 | AI13: =SUM(OFFSET(X13,-$W$2,-$W$2):OFFSET(X13,$W$2,$W$2)) -> 2.1 | AJ13: =SUM(OFFSET(Y13,-$W$2,-$W$2):OFFSET(Y13,$W$2,$W$2)) -> 2.9 | AK13: =SUM(OFFSET(Z13,-$W$2,-$W$2):OFFSET(Z13,$W$2,$W$2)) -> 2.9 | AL13: =SUM(OFFSET(AA13,-$W$2,-$W$2):OFFSET(AA13,$W$2,$W$2)) -> 2.9 | AM13: =SUM(OFFSET(AB13,-$W$2,-$W$2):OFFSET(AB13,$W$2,$W$2)) -> 2.9 | AN13: =SUM(OFFSET(AC13,-$W$2,-$W$2):OFFSET(AC13,$W$2,$W$2)) -> 2.9 | AO13: =SUM(OFFSET(AD13,-$W$2,-$W$2):OFFSET(AD13,$W$2,$W$2)) -> 2.6 | AP13: =SUM(OFFSET(AE13,-$W$2,-$W$2):OFFSET(AE13,$W$2,$W$2)) -> 2.6 | AQ13: =SUM(OFFSET(AF13,-$W$2,-$W$2):OFFSET(AF13,$W$2,$W$2)) -> 2 | AS13: 0.24 | AT13: 0.42 | AU13: 0.58 | AV13: 0.58 | AW13: 0.58 | AX13: 0 | AY13: 2.9 | AZ13: 0.52 | BA13: 0.52 | BB13: 0.4
A14: 2 | B14: 2 | C14: 2 | D14: 2 | E14: 2 | F14: 2 | G14: 2 | H14: 2 | I14: 2 | J14: 1 | L14: 0.2 | M14: 0.2 | N14: 0.2 | O14: 0.2 | P14: 0.2 | Q14: 0.2 | R14: 0.2 | S14: 0.2 | T14: 0.2 | U14: 1 | W14: 0.2 | X14: 0.2 | Y14: 0.2 | Z14: 0.2 | AA14: 0.2 | AB14: 0.2 | AC14: 0.2 | AD14: 0.2 | AE14: 0.2 | AF14: 1 | AH14: =SUM(OFFSET(W14,-$W$2,-$W$2):OFFSET(W14,$W$2,$W$2)) -> 2 | AI14: =SUM(OFFSET(X14,-$W$2,-$W$2):OFFSET(X14,$W$2,$W$2)) -> 2.6 | AJ14: =SUM(OFFSET(Y14,-$W$2,-$W$2):OFFSET(Y14,$W$2,$W$2)) -> 1.8 | AK14: =SUM(OFFSET(Z14,-$W$2,-$W$2):OFFSET(Z14,$W$2,$W$2)) -> 1.8 | AL14: =SUM(OFFSET(AA14,-$W$2,-$W$2):OFFSET(AA14,$W$2,$W$2)) -> 2.9 | AM14: =SUM(OFFSET(AB14,-$W$2,-$W$2):OFFSET(AB14,$W$2,$W$2)) -> 3.7 | AN14: =SUM(OFFSET(AC14,-$W$2,-$W$2):OFFSET(AC14,$W$2,$W$2)) -> 3.7 | AO14: =SUM(OFFSET(AD14,-$W$2,-$W$2):OFFSET(AD14,$W$2,$W$2)) -> 2.6 | AP14: =SUM(OFFSET(AE14,-$W$2,-$W$2):OFFSET(AE14,$W$2,$W$2)) -> 2.6 | AQ14: =SUM(OFFSET(AF14,-$W$2,-$W$2):OFFSET(AF14,$W$2,$W$2)) -> 2 | AS14: 0.4 | AT14: 0.52 | AU14: 0.36 | AV14: 0.36 | AW14: 0.58 | AX14: 0.74 | AY14: 0.74 | AZ14: 0.52 | BA14: 0.52 | BB14: 2
A15: 1 | B15: 2 | C15: 2 | D15: 2 | E15: 2 | F15: 1 | G15: 2 | H15: 2 | I15: 2 | J15: 2 | L15: 1 | M15: 0.2 | N15: 0.2 | O15: 0.2 | P15: 0.2 | Q15: 1 | R15: 0.2 | S15: 0.2 | T15: 0.2 | U15: 0.2 | W15: 1 | X15: 0.2 | Y15: 0.2 | Z15: 0.2 | AA15: 0.2 | AB15: 1 | AC15: 0.2 | AD15: 0.2 | AE15: 0.2 | AF15: 0.2 | AH15: =SUM(OFFSET(W15,-$W$2,-$W$2):OFFSET(W15,$W$2,$W$2)) -> 2 | AI15: =SUM(OFFSET(X15,-$W$2,-$W$2):OFFSET(X15,$W$2,$W$2)) -> 3.4 | AJ15: =SUM(OFFSET(Y15,-$W$2,-$W$2):OFFSET(Y15,$W$2,$W$2)) -> 2.6 | AK15: =SUM(OFFSET(Z15,-$W$2,-$W$2):OFFSET(Z15,$W$2,$W$2)) -> 2.6 | AL15: =SUM(OFFSET(AA15,-$W$2,-$W$2):OFFSET(AA15,$W$2,$W$2)) -> 2.6 | AM15: =SUM(OFFSET(AB15,-$W$2,-$W$2):OFFSET(AB15,$W$2,$W$2)) -> 2.6 | AN15: =SUM(OFFSET(AC15,-$W$2,-$W$2):OFFSET(AC15,$W$2,$W$2)) -> 2.6 | AO15: =SUM(OFFSET(AD15,-$W$2,-$W$2):OFFSET(AD15,$W$2,$W$2)) -> 1.8 | AP15: =SUM(OFFSET(AE15,-$W$2,-$W$2):OFFSET(AE15,$W$2,$W$2)) -> 2.6 | AQ15: =SUM(OFFSET(AF15,-$W$2,-$W$2):OFFSET(AF15,$W$2,$W$2)) -> 2 | AS15: 2 | AT15: 0.68 | AU15: 0.52 | AV15: 0.52 | AW15: 0.52 | AX15: 2.6 | AY15: 0.52 | AZ15: 0.36 | BA15: 0.52 | BB15: 0.4
A16: 2 | B16: 2 | C16: 1 | D16: 2 | E16: 2 | F16: 2 | G16: 2 | H16: 2 | I16: 2 | J16: 2 | L16: 0.2 | M16: 0.2 | N16: 1 | O16: 0.2 | P16: 0.2 | Q16: 0.2 | R16: 0.2 | S16: 0.2 | T16: 0.2 | U16: 0.2 | W16: 0.2 | X16: 0.2 | Y16: 1 | Z16: 0.2 | AA16: 0.2 | AB16: 0.2 | AC16: 0.2 | AD16: 0.2 | AE16: 0.2 | AF16: 0.2 | AH16: =SUM(OFFSET(W16,-$W$2,-$W$2):OFFSET(W16,$W$2,$W$2)) -> 1.6 | AI16: =SUM(OFFSET(X16,-$W$2,-$W$2):OFFSET(X16,$W$2,$W$2)) -> 2.8 | AJ16: =SUM(OFFSET(Y16,-$W$2,-$W$2):OFFSET(Y16,$W$2,$W$2)) -> 2 | AK16: =SUM(OFFSET(Z16,-$W$2,-$W$2):OFFSET(Z16,$W$2,$W$2)) -> 2 | AL16: =SUM(OFFSET(AA16,-$W$2,-$W$2):OFFSET(AA16,$W$2,$W$2)) -> 2 | AM16: =SUM(OFFSET(AB16,-$W$2,-$W$2):OFFSET(AB16,$W$2,$W$2)) -> 2 | AN16: =SUM(OFFSET(AC16,-$W$2,-$W$2):OFFSET(AC16,$W$2,$W$2)) -> 2 | AO16: =SUM(OFFSET(AD16,-$W$2,-$W$2):OFFSET(AD16,$W$2,$W$2)) -> 1.2 | AP16: =SUM(OFFSET(AE16,-$W$2,-$W$2):OFFSET(AE16,$W$2,$W$2)) -> 1.2 | AQ16: =SUM(OFFSET(AF16,-$W$2,-$W$2):OFFSET(AF16,$W$2,$W$2)) -> 0.8 | AS16: 0.32 | AT16: 0.56 | AU16: 2 | AV16: 0.4 | AW16: 0.4 | AX16: 0.4 | AY16: 0.4 | AZ16: 0.24 | BA16: 0.24 | BB16: 0.16
A18: Active pollinators | L18: Income | W18: Marginal change | AH18: Rank
A19: =SUM(OFFSET(AS7,-$W$2,-$W$2):OFFSET(AS7,$W$2,$W$2)) -> 3.72 | B19: =SUM(OFFSET(AT7,-$W$2,-$W$2):OFFSET(AT7,$W$2,$W$2)) -> 4.64 | C19: =SUM(OFFSET(AU7,-$W$2,-$W$2):OFFSET(AU7,$W$2,$W$2)) -> 4.68 | D19: =SUM(OFFSET(AV7,-$W$2,-$W$2):OFFSET(AV7,$W$2,$W$2)) -> 2.44 | E19: =SUM(OFFSET(AW7,-$W$2,-$W$2):OFFSET(AW7,$W$2,$W$2)) -> 2.28 | F19: =SUM(OFFSET(AX7,-$W$2,-$W$2):OFFSET(AX7,$W$2,$W$2)) -> 2.24 | G19: =SUM(OFFSET(AY7,-$W$2,-$W$2):OFFSET(AY7,$W$2,$W$2)) -> 1.78 | H19: =SUM(OFFSET(AZ7,-$W$2,-$W$2):OFFSET(AZ7,$W$2,$W$2)) -> 1.74 | I19: =SUM(OFFSET(BA7,-$W$2,-$W$2):OFFSET(BA7,$W$2,$W$2)) -> 1.42 | J19: =SUM(OFFSET(BB7,-$W$2,-$W$2):OFFSET(BB7,$W$2,$W$2)) -> 1.12 | L19: =A19*VLOOKUP(A7,$B$2:$E$4,4,FALSE)*VLOOKUP(A7,$B$2:$F$4,5,FALSE) -> 0 | M19: 0 | N19: 0 | O19: 0 | P19: 0 | Q19: 0 | R19: 0 | S19: 0 | T19: 0 | U19: 0 | W19: 0 | X19: 0 | Y19: 0 | Z19: 0 | AA19: 0 | AB19: 0.32 | AC19: 2.32 | AD19: 2.64 | AE19: 2.32 | AF19: 0.32 | AH19: =RANK(W19,$W$19:$AF$28,0) -> 60 | AI19: 60 | AJ19: 60 | AK19: 60 | AL19: 60 | AM19: 43 | AN19: 27 | AO19: 26 | AP19: 27 | AQ19: 43
A20: =SUM(OFFSET(AS8,-$W$2,-$W$2):OFFSET(AS8,$W$2,$W$2)) -> 4.64 | B20: =SUM(OFFSET(AT8,-$W$2,-$W$2):OFFSET(AT8,$W$2,$W$2)) -> 6.08 | C20: =SUM(OFFSET(AU8,-$W$2,-$W$2):OFFSET(AU8,$W$2,$W$2)) -> 6.3 | D20: =SUM(OFFSET(AV8,-$W$2,-$W$2):OFFSET(AV8,$W$2,$W$2)) -> 6.44 | E20: =SUM(OFFSET(AW8,-$W$2,-$W$2):OFFSET(AW8,$W$2,$W$2)) -> 6.34 | F20: =SUM(OFFSET(AX8,-$W$2,-$W$2):OFFSET(AX8,$W$2,$W$2)) -> 6.14 | G20: =SUM(OFFSET(AY8,-$W$2,-$W$2):OFFSET(AY8,$W$2,$W$2)) -> 3.2 | H20: =SUM(OFFSET(AZ8,-$W$2,-$W$2):OFFSET(AZ8,$W$2,$W$2)) -> 3 | I20: =SUM(OFFSET(BA8,-$W$2,-$W$2):OFFSET(BA8,$W$2,$W$2)) -> 2.5 | J20: =SUM(OFFSET(BB8,-$W$2,-$W$2):OFFSET(BB8,$W$2,$W$2)) -> 1.78 | L20: 0 | M20: 0 | N20: 0 | O20: 0 | P20: 0 | Q20: 0 | R20: 0 | S20: 3 | T20: 0 | U20: 0 | W20: 0 | X20: 0 | Y20: 0.16 | Z20: 0.96 | AA20: 1.12 | AB20: 1.44 | AC20: 3.28 | AD20: 0 | AE20: 3.12 | AF20: 0.48 | AH20: 60 | AI20: 60 | AJ20: 54 | AK20: 32 | AL20: 30 | AM20: 29 | AN20: 17 | AO20: 60 | AP20: 19 | AQ20: 39
A21: =SUM(OFFSET(AS9,-$W$2,-$W$2):OFFSET(AS9,$W$2,$W$2)) -> 4.52 | B21: =SUM(OFFSET(AT9,-$W$2,-$W$2):OFFSET(AT9,$W$2,$W$2)) -> 5.92 | C21: =SUM(OFFSET(AU9,-$W$2,-$W$2):OFFSET(AU9,$W$2,$W$2)) -> 6.56 | D21: =SUM(OFFSET(AV9,-$W$2,-$W$2):OFFSET(AV9,$W$2,$W$2)) -> 6.5 | E21: =SUM(OFFSET(AW9,-$W$2,-$W$2):OFFSET(AW9,$W$2,$W$2)) -> 6.78 | F21: =SUM(OFFSET(AX9,-$W$2,-$W$2):OFFSET(AX9,$W$2,$W$2)) -> 6.46 | G21: =SUM(OFFSET(AY9,-$W$2,-$W$2):OFFSET(AY9,$W$2,$W$2)) -> 3.98 | H21: =SUM(OFFSET(AZ9,-$W$2,-$W$2):OFFSET(AZ9,$W$2,$W$2)) -> 3.66 | I21: =SUM(OFFSET(BA9,-$W$2,-$W$2):OFFSET(BA9,$W$2,$W$2)) -> 3.02 | J21: =SUM(OFFSET(BB9,-$W$2,-$W$2):OFFSET(BB9,$W$2,$W$2)) -> 2.08 | L21: 0 | M21: 0 | N21: 0 | O21: 0 | P21: 0 | Q21: 0 | R21: 0 | S21: 0 | T21: 0 | U21: 0 | W21: 0 | X21: 0 | Y21: 0.32 | Z21: 4.08 | AA21: 0 | AB21: 4.4 | AC21: 3.12 | AD21: 3.12 | AE21: 2.8 | AF21: 0.32 | AH21: 60 | AI21: 60 | AJ21: 43 | AK21: 15 | AL21: 60 | AM21: 13 | AN21: 19 | AO21: 19 | AP21: 23 | AQ21: 43
A22: =SUM(OFFSET(AS10,-$W$2,-$W$2):OFFSET(AS10,$W$2,$W$2)) -> 2.18 | B22: =SUM(OFFSET(AT10,-$W$2,-$W$2):OFFSET(AT10,$W$2,$W$2)) -> 3.64 | C22: =SUM(OFFSET(AU10,-$W$2,-$W$2):OFFSET(AU10,$W$2,$W$2)) -> 4.56 | D22: =SUM(OFFSET(AV10,-$W$2,-$W$2):OFFSET(AV10,$W$2,$W$2)) -> 6.74 | E22: =SUM(OFFSET(AW10,-$W$2,-$W$2):OFFSET(AW10,$W$2,$W$2)) -> 6.86 | F22: =SUM(OFFSET(AX10,-$W$2,-$W$2):OFFSET(AX10,$W$2,$W$2)) -> 6.52 | G22: =SUM(OFFSET(AY10,-$W$2,-$W$2):OFFSET(AY10,$W$2,$W$2)) -> 6.58 | H22: =SUM(OFFSET(AZ10,-$W$2,-$W$2):OFFSET(AZ10,$W$2,$W$2)) -> 6.46 | I22: =SUM(OFFSET(BA10,-$W$2,-$W$2):OFFSET(BA10,$W$2,$W$2)) -> 5.72 | J22: =SUM(OFFSET(BB10,-$W$2,-$W$2):OFFSET(BB10,$W$2,$W$2)) -> 2.18 | L22: 0 | M22: 0 | N22: 0 | O22: 0 | P22: 6.86 | Q22: 0 | R22: 0 | S22: 0 | T22: 0 | U22: 0 | W22: 0.16 | X22: 0.32 | Y22: 0.96 | Z22: 4.72 | AA22: 0 | AB22: 4.56 | AC22: 0.8 | AD22: 0.48 | AE22: 0.32 | AF22: 0.16 | AH22: 54 | AI22: 43 | AJ22: 32 | AK22: 6 | AL22: 60 | AM22: 11 | AN22: 36 | AO22: 39 | AP22: 43 | AQ22: 54
A23: =SUM(OFFSET(AS11,-$W$2,-$W$2):OFFSET(AS11,$W$2,$W$2)) -> 1.92 | B23: =SUM(OFFSET(AT11,-$W$2,-$W$2):OFFSET(AT11,$W$2,$W$2)) -> 2.86 | C23: =SUM(OFFSET(AU11,-$W$2,-$W$2):OFFSET(AU11,$W$2,$W$2)) -> 6.26 | D23: =SUM(OFFSET(AV11,-$W$2,-$W$2):OFFSET(AV11,$W$2,$W$2)) -> 6.22 | E23: =SUM(OFFSET(AW11,-$W$2,-$W$2):OFFSET(AW11,$W$2,$W$2)) -> 6.86 | F23: =SUM(OFFSET(AX11,-$W$2,-$W$2):OFFSET(AX11,$W$2,$W$2)) -> 4.52 | G23: =SUM(OFFSET(AY11,-$W$2,-$W$2):OFFSET(AY11,$W$2,$W$2)) -> 7.16 | H23: =SUM(OFFSET(AZ11,-$W$2,-$W$2):OFFSET(AZ11,$W$2,$W$2)) -> 7.14 | I23: =SUM(OFFSET(BA11,-$W$2,-$W$2):OFFSET(BA11,$W$2,$W$2)) -> 6.08 | J23: =SUM(OFFSET(BB11,-$W$2,-$W$2):OFFSET(BB11,$W$2,$W$2)) -> 2.28 | L23: 0 | M23: 0 | N23: 0 | O23: 0 | P23: 0 | Q23: 0 | R23: 0 | S23: 0 | T23: 0 | U23: 0 | W23: 0.32 | X23: 2.8 | Y23: 4.72 | Z23: 8.16 | AA23: 5.04 | AB23: 3.28 | AC23: 0.64 | AD23: 0 | AE23: 0 | AF23: 0 | AH23: 43 | AI23: 23 | AJ23: 6 | AK23: 1 | AL23: 2 | AM23: 17 | AN23: 37 | AO23: 60 | AP23: 60 | AQ23: 60
A24: =SUM(OFFSET(AS12,-$W$2,-$W$2):OFFSET(AS12,$W$2,$W$2)) -> 1.98 | B24: =SUM(OFFSET(AT12,-$W$2,-$W$2):OFFSET(AT12,$W$2,$W$2)) -> 3.14 | C24: =SUM(OFFSET(AU12,-$W$2,-$W$2):OFFSET(AU12,$W$2,$W$2)) -> 6.54 | D24: =SUM(OFFSET(AV12,-$W$2,-$W$2):OFFSET(AV12,$W$2,$W$2)) -> 7.02 | E24: =SUM(OFFSET(AW12,-$W$2,-$W$2):OFFSET(AW12,$W$2,$W$2)) -> 6.86 | F24: =SUM(OFFSET(AX12,-$W$2,-$W$2):OFFSET(AX12,$W$2,$W$2)) -> 6.9 | G24: =SUM(OFFSET(AY12,-$W$2,-$W$2):OFFSET(AY12,$W$2,$W$2)) -> 8.96 | H24: =SUM(OFFSET(AZ12,-$W$2,-$W$2):OFFSET(AZ12,$W$2,$W$2)) -> 9.52 | I24: =SUM(OFFSET(BA12,-$W$2,-$W$2):OFFSET(BA12,$W$2,$W$2)) -> 6.24 | J24: =SUM(OFFSET(BB12,-$W$2,-$W$2):OFFSET(BB12,$W$2,$W$2)) -> 2.44 | L24: 0 | M24: 0 | N24: 6.54 | O24: 0 | P24: 0 | Q24: 0 | R24: 0 | S24: 0 | T24: 0 | U24: 0 | W24: 0.48 | X24: 3.12 | Y24: 0 | Z24: 0 | AA24: 5.04 | AB24: 4.72 | AC24: 4.88 | AD24: 0.96 | AE24: 0 | AF24: 0 | AH24: 39 | AI24: 19 | AJ24: 60 | AK24: 60 | AL24: 2 | AM24: 6 | AN24: 5 | AO24: 32 | AP24: 60 | AQ24: 60
A25: =SUM(OFFSET(AS13,-$W$2,-$W$2):OFFSET(AS13,$W$2,$W$2)) -> 2.24 | B25: =SUM(OFFSET(AT13,-$W$2,-$W$2):OFFSET(AT13,$W$2,$W$2)) -> 3.18 | C25: =SUM(OFFSET(AU13,-$W$2,-$W$2):OFFSET(AU13,$W$2,$W$2)) -> 6.14 | D25: =SUM(OFFSET(AV13,-$W$2,-$W$2):OFFSET(AV13,$W$2,$W$2)) -> 6.52 | E25: =SUM(OFFSET(AW13,-$W$2,-$W$2):OFFSET(AW13,$W$2,$W$2)) -> 6.9 | F25: =SUM(OFFSET(AX13,-$W$2,-$W$2):OFFSET(AX13,$W$2,$W$2)) -> 7.44 | G25: =SUM(OFFSET(AY13,-$W$2,-$W$2):OFFSET(AY13,$W$2,$W$2)) -> 7.42 | H25: =SUM(OFFSET(AZ13,-$W$2,-$W$2):OFFSET(AZ13,$W$2,$W$2)) -> 7.66 | I25: =SUM(OFFSET(BA13,-$W$2,-$W$2):OFFSET(BA13,$W$2,$W$2)) -> 5.92 | J25: =SUM(OFFSET(BB13,-$W$2,-$W$2):OFFSET(BB13,$W$2,$W$2)) -> 4.2 | L25: 0 | M25: 0 | N25: 0 | O25: 0 | P25: 0 | Q25: 7.44 | R25: 0 | S25: 0 | T25: 0 | U25: 0 | W25: 0.32 | X25: 2.8 | Y25: 4.4 | Z25: 4.56 | AA25: 4.72 | AB25: 0 | AC25: 0 | AD25: 1.12 | AE25: 0 | AF25: 0 | AH25: 43 | AI25: 23 | AJ25: 13 | AK25: 11 | AL25: 6 | AM25: 60 | AN25: 60 | AO25: 30 | AP25: 60 | AQ25: 60
A26: =SUM(OFFSET(AS14,-$W$2,-$W$2):OFFSET(AS14,$W$2,$W$2)) -> 4.26 | B26: =SUM(OFFSET(AT14,-$W$2,-$W$2):OFFSET(AT14,$W$2,$W$2)) -> 5.72 | C26: =SUM(OFFSET(AU14,-$W$2,-$W$2):OFFSET(AU14,$W$2,$W$2)) -> 4.54 | D26: =SUM(OFFSET(AV14,-$W$2,-$W$2):OFFSET(AV14,$W$2,$W$2)) -> 4.6 | E26: =SUM(OFFSET(AW14,-$W$2,-$W$2):OFFSET(AW14,$W$2,$W$2)) -> 6.48 | F26: =SUM(OFFSET(AX14,-$W$2,-$W$2):OFFSET(AX14,$W$2,$W$2)) -> 9.18 | G26: =SUM(OFFSET(AY14,-$W$2,-$W$2):OFFSET(AY14,$W$2,$W$2)) -> 8.9 | H26: =SUM(OFFSET(AZ14,-$W$2,-$W$2):OFFSET(AZ14,$W$2,$W$2)) -> 7.12 | I26: =SUM(OFFSET(BA14,-$W$2,-$W$2):OFFSET(BA14,$W$2,$W$2)) -> 5.76 | J26: =SUM(OFFSET(BB14,-$W$2,-$W$2):OFFSET(BB14,$W$2,$W$2)) -> 4.36 | L26: 0 | M26: 0 | N26: 0 | O26: 0 | P26: 0 | Q26: 0 | R26: 0 | S26: 0 | T26: 0 | U26: 0 | W26: 0.16 | X26: 0.32 | Y26: 0.48 | Z26: 0.64 | AA26: 3.6 | AB26: 5.04 | AC26: 4.72 | AD26: 0.96 | AE26: 0 | AF26: 0 | AH26: 54 | AI26: 43 | AJ26: 39 | AK26: 37 | AL26: 16 | AM26: 2 | AN26: 6 | AO26: 32 | AP26: 60 | AQ26: 60
A27: =SUM(OFFSET(AS15,-$W$2,-$W$2):OFFSET(AS15,$W$2,$W$2)) -> 4.48 | B27: =SUM(OFFSET(AT15,-$W$2,-$W$2):OFFSET(AT15,$W$2,$W$2)) -> 7.36 | C27: =SUM(OFFSET(AU15,-$W$2,-$W$2):OFFSET(AU15,$W$2,$W$2)) -> 5.92 | D27: =SUM(OFFSET(AV15,-$W$2,-$W$2):OFFSET(AV15,$W$2,$W$2)) -> 5.66 | E27: =SUM(OFFSET(AW15,-$W$2,-$W$2):OFFSET(AW15,$W$2,$W$2)) -> 6.52 | F27: =SUM(OFFSET(AX15,-$W$2,-$W$2):OFFSET(AX15,$W$2,$W$2)) -> 6.9 | G27: =SUM(OFFSET(AY15,-$W$2,-$W$2):OFFSET(AY15,$W$2,$W$2)) -> 6.52 | H27: =SUM(OFFSET(AZ15,-$W$2,-$W$2):OFFSET(AZ15,$W$2,$W$2)) -> 4.06 | I27: =SUM(OFFSET(BA15,-$W$2,-$W$2):OFFSET(BA15,$W$2,$W$2)) -> 4.96 | J27: =SUM(OFFSET(BB15,-$W$2,-$W$2):OFFSET(BB15,$W$2,$W$2)) -> 3.84 | L27: 0 | M27: 0 | N27: 0 | O27: 0 | P27: 0 | Q27: 0 | R27: 0 | S27: 0 | T27: 0 | U27: 0 | W27: 0 | X27: 0 | Y27: 0 | Z27: 0.16 | AA27: 0.32 | AB27: 0 | AC27: 0.32 | AD27: 0.16 | AE27: 0 | AF27: 0 | AH27: 60 | AI27: 60 | AJ27: 60 | AK27: 54 | AL27: 43 | AM27: 60 | AN27: 43 | AO27: 54 | AP27: 60 | AQ27: 60
A28: =SUM(OFFSET(AS16,-$W$2,-$W$2):OFFSET(AS16,$W$2,$W$2)) -> 3.56 | B28: =SUM(OFFSET(AT16,-$W$2,-$W$2):OFFSET(AT16,$W$2,$W$2)) -> 6.08 | C28: =SUM(OFFSET(AU16,-$W$2,-$W$2):OFFSET(AU16,$W$2,$W$2)) -> 4.68 | D28: =SUM(OFFSET(AV16,-$W$2,-$W$2):OFFSET(AV16,$W$2,$W$2)) -> 4.36 | E28: =SUM(OFFSET(AW16,-$W$2,-$W$2):OFFSET(AW16,$W$2,$W$2)) -> 4.84 | F28: =SUM(OFFSET(AX16,-$W$2,-$W$2):OFFSET(AX16,$W$2,$W$2)) -> 4.84 | G28: =SUM(OFFSET(AY16,-$W$2,-$W$2):OFFSET(AY16,$W$2,$W$2)) -> 4.52 | H28: =SUM(OFFSET(AZ16,-$W$2,-$W$2):OFFSET(AZ16,$W$2,$W$2)) -> 2.28 | I28: =SUM(OFFSET(BA16,-$W$2,-$W$2):OFFSET(BA16,$W$2,$W$2)) -> 1.92 | J28: =SUM(OFFSET(BB16,-$W$2,-$W$2):OFFSET(BB16,$W$2,$W$2)) -> 1.32 | L28: 0 | M28: 0 | N28: 0 | O28: 0 | P28: 0 | Q28: 0 | R28: 0 | S28: 0 | T28: 0 | U28: 0 | W28: 0 | X28: 0 | Y28: 0 | Z28: 0 | AA28: 0 | AB28: 0 | AC28: 0 | AD28: 0 | AE28: 0 | AF28: 0 | AH28: 60 | AI28: 60 | AJ28: 60 | AK28: 60 | AL28: 60 | AM28: 60 | AN28: 60 | AO28: 60 | AP28: 60 | AQ28: 60
